bitfinex/quotes_BTCUSD_20251016
["timestamp","ask_amount","ask_price","bid_price","bid_amount"]
[1760629865766,0.47,109230.0,109210.0,0.01798804]
[1760629865990,0.47,109230.0,109200.0,1.59504274]
[1760629866268,0.47,109230.0,109200.0,1.78734849]
[1760629866494,0.47,109230.0,109210.0,0.01529399]
[1760629866705,0.65310561,109230.0,109210.0,0.00015019]
[1760629866916,0.82045,109220.0,109210.0,0.00015019]
[1760629867133,0.47,109220.0,109210.0,0.00015019]
[1760629867571,0.13,109220.0,109210.0,0.20159694]
[1760629867775,0.13,109220.0,109210.0,0.00015019]
[1760629867985,0.13,109220.0,109210.0,0.1832836]
[1760629868395,0.13,109220.0,109210.0,0.19315397]
[1760629868606,0.13,109220.0,109210.0,0.20159694]
[1760629868817,0.13,109220.0,109210.0,0.1832836]
[1760629869028,0.125,109220.0,109210.0,0.1832836]
[1760629870251,0.125,109220.0,109210.0,0.00015019]
[1760629870655,0.125,109220.0,109210.0,0.00115019]
[1760629871190,0.64811664,109220.0,109210.0,0.00015019]
[1760629871435,1.14777217,109220.0,109210.0,0.00015019]
[1760629871849,1.17174652,109220.0,109210.0,0.00015019]
[1760629872096,1.2394565,109220.0,109210.0,0.00015019]
[1760629872281,1.65624894,109220.0,109210.0,1e-08]
[1760629872481,1.63956653,109220.0,109210.0,1e-08]
[1760629872707,1.65625014,109220.0,109210.0,1e-08]
[1760629872912,1.22566213,109220.0,109210.0,1e-08]
[1760629873338,1.22466213,109220.0,109210.0,1e-08]
[1760629873581,1.22666213,109220.0,109210.0,1e-08]
[1760629873794,1.63266873,109220.0,109210.0,1e-08]
[1760629874066,2.08094026,109220.0,109210.0,1e-08]
[1760629874282,2.03366873,109220.0,109210.0,1e-08]
[1760629874486,2.02568088,109220.0,109210.0,1e-08]
[1760629874906,2.05771155,109220.0,109210.0,1e-08]
[1760629875111,2.06606286,109220.0,109210.0,1e-08]
[1760629875322,2.03403219,109220.0,109210.0,1e-08]
[1760629875543,2.04202004,109220.0,109210.0,1e-08]
[1760629875961,1.00358341,109210.0,109200.0,1.47080539]
[1760629876175,1.28661836,109210.0,109200.0,1.47080539]
[1760629876402,1.22250614,109210.0,109200.0,0.91351834]
[1760629876615,1.22250614,109210.0,109200.0,0.70374027]
[1760629876828,1.22250614,109210.0,109200.0,0.48253657]
[1760629877031,1.21170614,109210.0,109200.0,0.48253657]
[1760629877240,1.26169685,109210.0,109200.0,0.10089882]
[1760629877445,1.26169685,109210.0,109180.0,0.01798804]
[1760629877675,0.34,109150.0,109130.0,0.01854804]
[1760629877885,0.38045,109140.0,109130.0,0.01854804]
[1760629878094,0.56352341,109140.0,109130.0,0.01854804]
[1760629878305,0.18307341,109140.0,109130.0,0.2018157]
[1760629878525,0.18307341,109140.0,109130.0,0.00056]
[1760629878996,0.56352341,109140.0,109130.0,0.00056]
[1760629879199,0.43296341,109120.0,109080.0,0.20133869]
[1760629879410,0.49045,109120.0,109100.0,0.01798804]
[1760629879613,0.43296341,109110.0,109090.0,0.19249927]
[1760629879843,0.05251341,109100.0,109090.0,0.19249927]
[1760629880059,0.18251341,109100.0,109090.0,0.19249927]
[1760629880729,0.18251341,109100.0,109090.0,0.95256265]
[1760629880959,0.18266322,109100.0,109090.0,0.98874493]
[1760629881185,0.18266322,109100.0,109090.0,0.19249927]
[1760629881655,0.18266322,109100.0,109080.0,0.19251823]
[1760629881865,0.05251341,109090.0,109080.0,0.19251823]
[1760629882077,0.19251341,109090.0,109080.0,0.19251924]
[1760629885016,0.14,109090.0,109080.0,0.9887649]
[1760629885219,0.14,109090.0,109080.0,0.22870152]
[1760629885664,0.00038668,109110.0,109100.0,0.18331805]
[1760629885873,0.12038668,109110.0,109100.0,0.94388312]
[1760629886320,0.12038668,109110.0,109100.0,0.18381974]
[1760629886599,0.2,109140.0,109130.0,0.18326766]
[1760629886812,0.01798804,109160.0,109140.0,0.18324341]
[1760629887022,0.13,109160.0,109150.0,0.18323408]
[1760629887442,0.13301953,109160.0,109150.0,0.18323408]
[1760629887865,0.13281953,109160.0,109150.0,0.18323408]
[1760629888070,0.13296987,109160.0,109150.0,0.18303408]
[1760629888511,0.13276987,109160.0,109150.0,0.18303408]
[1760629888721,0.13276987,109160.0,109150.0,0.18283408]
[1760629889162,0.13256987,109160.0,109150.0,0.18283408]
[1760629889369,0.13256987,109160.0,109150.0,0.18263408]
[1760629889794,0.13236987,109160.0,109150.0,0.18263408]
[1760629890004,0.13236987,109160.0,109150.0,0.18243408]
[1760629890634,0.13236987,109160.0,109140.0,0.18324341]
[1760629890635,0.38045,109170.0,109140.0,0.1924124]
[1760629890850,0.38045,109170.0,109140.0,0.00015034]
[1760629890851,0.34,109160.0,109140.0,0.00015034]
[1760629891073,0.34,109160.0,109140.0,0.01847542]
[1760629891285,0.38045,109150.0,109140.0,0.01847542]
[1760629891506,0.50045,109150.0,109140.0,0.01847542]
[1760629891749,0.50045,109150.0,109140.0,0.00015034]
[1760629892188,0.12,109150.0,109140.0,0.00015034]
[1760629892441,0.84045,109150.0,109140.0,0.00015034]
[1760629892640,1.02368408,109150.0,109140.0,0.00015034]
[1760629892883,0.64323408,109150.0,109140.0,0.00015034]
[1760629893098,0.64323408,109150.0,109140.0,0.00115034]
[1760629893352,0.64323408,109150.0,109140.0,0.00015034]
[1760629893571,1.02368408,109150.0,109140.0,0.00015034]
[1760629893793,1.0437444,109150.0,109140.0,0.00015034]
[1760629894273,1.09647096,109150.0,109140.0,0.00015034]
[1760629894900,1.09547096,109150.0,109140.0,0.00015034]
[1760629895097,1.09647096,109150.0,109140.0,0.00015034]
[1760629895511,1.05928868,109150.0,109140.0,0.00015034]
[1760629895720,1.09647096,109150.0,109140.0,0.00015034]
[1760629896579,1.06028868,109150.0,109140.0,0.00015034]
[1760629896824,0.82777107,109150.0,109140.0,0.00015034]
[1760629897035,0.84777107,109150.0,109140.0,0.00015034]
[1760629897247,0.88395335,109150.0,109140.0,0.00015034]
[1760629897673,0.84777107,109150.0,109140.0,0.00015034]
[1760629898089,0.94446107,109150.0,109140.0,0.00015034]
[1760629898303,0.66453699,109150.0,109140.0,0.00015034]
[1760629898512,0.0564046,109150.0,109140.0,0.00015034]
[1760629898739,0.03754428,109150.0,109130.0,0.18321608]
[1760629898946,0.37669445,109150.0,109130.0,0.18326749]
[1760629899384,0.37769445,109150.0,109130.0,0.18326749]
[1760629899597,0.37769445,109150.0,109130.0,0.18326694]
[1760629899807,0.37769445,109150.0,109130.0,0.18326261]
[1760629900044,0.03769445,109150.0,109140.0,0.20157595]
[1760629900267,0.02015017,109150.0,109140.0,0.18325087]
[1760629902054,0.02015017,109150.0,109140.0,0.18425087]
[1760629902278,0.02015017,109150.0,109140.0,0.18325087]
[1760629902710,0.02015017,109150.0,109140.0,0.18425087]
[1760629902711,0.01652225,109150.0,109140.0,0.18425087]
[1760629902928,0.01652225,109150.0,109140.0,0.18325087]
[1760629903358,0.01652225,109150.0,109140.0,0.18425087]
[1760629903771,0.01652225,109150.0,109140.0,0.12043315]
[1760629904010,0.13000001,109150.0,109140.0,1.23882161]
[1760629904222,0.00060371,109170.0,109160.0,0.18321729]
[1760629904430,0.13060371,109170.0,109160.0,0.18321729]
[1760629904655,0.14728107,109170.0,109160.0,0.18321729]
[1760629905325,0.14688107,109170.0,109160.0,0.18421729]
[1760629905783,0.14688107,109170.0,109160.0,0.18204306]
[1760629905993,0.14688107,109170.0,109160.0,0.18284306]
[1760629906202,0.14668107,109170.0,109160.0,0.18284306]
[1760629906408,0.14648107,109170.0,109160.0,0.18284306]
[1760629906619,0.15482466,109170.0,109160.0,0.18284306]
[1760629906837,0.17878992,109170.0,109160.0,0.18264306]
[1760629907023,0.17878993,109170.0,109160.0,0.18244306]
[1760629907262,0.15482472,109170.0,109160.0,0.18244306]
[1760629907466,0.14628107,109170.0,109160.0,0.18144306]
[1760629907688,0.12960371,109170.0,109160.0,0.18124306]
[1760629907900,0.12960371,109170.0,109160.0,0.18224306]
[1760629908116,0.12960371,109170.0,109160.0,0.18124306]
[1760629908544,0.12960371,109170.0,109160.0,0.18224306]
[1760629910437,0.12960371,109170.0,109160.0,0.18421729]
[1760629910653,0.12960371,109170.0,109160.0,0.001]
[1760629910855,0.14627,109170.0,109160.0,0.18421729]
[1760629911268,0.14627,109170.0,109160.0,0.001]
[1760629911708,0.14627,109170.0,109160.0,0.01878257]
[1760629911918,0.14627,109170.0,109160.0,0.001]
[1760629912195,0.48607,109170.0,109160.0,0.001]
[1760629912406,0.50527186,109170.0,109150.0,0.1830291]
[1760629912620,5.0,109160.0,109150.0,0.1832339]
[1760629912831,5.13,109160.0,109150.0,0.1832339]
[1760629913032,0.13,109160.0,109150.0,0.1832339]
[1760629913661,0.13,109160.0,109150.0,0.94329728]
[1760629913868,1e-08,109160.0,109150.0,0.97947956]
[1760629914696,1e-08,109160.0,109150.0,1.32047956]
[1760629914893,0.215,109190.0,109180.0,0.18318373]
[1760629914894,0.045,109190.0,109180.0,0.18318373]
[1760629915102,0.16515026,109190.0,109180.0,0.18318373]
[1760629915307,0.16515026,109190.0,109180.0,0.94324711]
[1760629915720,0.16515026,109190.0,109180.0,0.18318373]
[1760629916343,0.18181827,109190.0,109180.0,0.18318373]
[1760629916548,0.16515026,109190.0,109180.0,0.18318373]
[1760629917309,0.18181207,109190.0,109180.0,0.18418373]
[1760629917508,0.18181272,109190.0,109180.0,0.18318373]
[1760629917916,0.34,109210.0,109190.0,0.18316141]
[1760629918096,5.0,109200.0,109190.0,0.18316141]
[1760629918302,0.14753659,109200.0,109190.0,0.18316141]
[1760629918524,0.12832978,109200.0,109190.0,0.18316141]
[1760629918751,0.12812978,109200.0,109190.0,0.18316141]
[1760629918940,0.12812978,109200.0,109190.0,0.18296141]
[1760629919127,0.12,109200.0,109190.0,0.18296141]
[1760629919561,0.12,109200.0,109180.0,0.19234291]
[1760629919783,0.12,109200.0,109170.0,0.19234555]
[1760629920010,0.12,109200.0,109180.0,0.18318255]
[1760629920223,0.12,109200.0,109170.0,0.18335052]
[1760629920452,0.34,109190.0,109170.0,0.18334727]
[1760629920672,0.34,109190.0,109180.0,0.19660122]
[1760629920673,0.46,109190.0,109180.0,0.19660122]
[1760629920885,0.47900681,109190.0,109180.0,0.18318373]
[1760629921088,0.4598,109190.0,109180.0,0.18318373]
[1760629921311,0.47897945,109190.0,109170.0,0.00015026]
[1760629921525,5.0,109180.0,109170.0,0.00015026]
[1760629921740,5.14917942,109180.0,109170.0,0.00015026]
[1760629921959,5.33236315,109180.0,109170.0,0.00015026]
[1760629922963,5.67236315,109180.0,109170.0,0.00015026]
[1760629924009,5.70431819,109180.0,109170.0,0.00015026]
[1760629924637,5.52113446,109180.0,109170.0,0.00015026]
[1760629924869,5.48917942,109180.0,109170.0,0.00015026]
[1760629925081,0.14917942,109180.0,109170.0,0.20167082]
[1760629925297,0.13,109180.0,109170.0,0.18335077]
[1760629926149,0.13060363,109180.0,109170.0,0.18315077]
[1760629926366,0.22917942,109210.0,109200.0,0.18315018]
[1760629926574,0.04691045,109220.0,109210.0,0.18313341]
[1760629926784,0.16691045,109220.0,109190.0,0.19231047]
[1760629926994,5.03195504,109210.0,109190.0,0.18316555]
[1760629927247,5.03195504,109210.0,109180.0,0.18318096]
[1760629927248,0.53113446,109210.0,109180.0,0.18318096]
[1760629927431,5.03195504,109200.0,109170.0,0.01806804]
[1760629927637,0.34,109190.0,109170.0,0.20126821]
[1760629927854,0.47,109190.0,109170.0,0.20126669]
[1760629928071,0.48917942,109190.0,109180.0,0.01313174]
[1760629928292,5.70430818,109190.0,109170.0,8e-05]
[1760629928509,5.0,109180.0,109170.0,8e-05]
[1760629928725,5.70431819,109180.0,109170.0,8e-05]
[1760629928939,5.70431819,109180.0,109170.0,0.00012]
[1760629928940,5.72035386,109180.0,109170.0,0.00012]
[1760629929160,5.75653614,109180.0,109170.0,0.00012]
[1760629929377,6.15662562,109180.0,109170.0,0.00016]
[1760629930017,6.17331873,109180.0,109170.0,0.00016]
[1760629930762,6.1901634,109180.0,109170.0,0.0002]
[1760629931010,6.19114898,109180.0,109170.0,0.00024]
[1760629931747,5.55575881,109180.0,109170.0,0.00024]
[1760629931939,5.73894254,109180.0,109170.0,0.00024]
[1760629933027,5.65137881,109180.0,109170.0,0.00024]
[1760629933235,5.16587253,109180.0,109170.0,0.00024]
[1760629933452,0.16687253,109180.0,109170.0,0.18344051]
[1760629933665,0.14669311,109180.0,109170.0,0.18344051]
[1760629933876,0.14769311,109180.0,109170.0,0.18344051]
[1760629934086,0.131,109180.0,109170.0,0.18344051]
[1760629934364,0.13,109180.0,109170.0,0.18344051]
[1760629936382,1e-08,109190.0,109180.0,0.18318373]
[1760629936615,0.18,109220.0,109210.0,0.18313341]
[1760629936842,0.13833921,109220.0,109210.0,0.67539731]
[1760629937050,0.13181006,109220.0,109210.0,0.67539731]
[1760629937301,0.12661165,109220.0,109210.0,0.18313341]
[1760629937561,0.15162012,109220.0,109210.0,0.18313341]
[1760629937758,0.15176929,109220.0,109210.0,0.18313341]
[1760629937986,0.15176929,109220.0,109210.0,0.18413341]
[1760629938229,0.15176929,109220.0,109210.0,0.18313341]
[1760629938461,0.14343343,109220.0,109210.0,0.67539731]
[1760629938718,0.18,109250.0,109240.0,0.18308311]
[1760629938945,0.18,109250.0,109220.0,0.00915583]
[1760629938946,0.11050075,109250.0,109220.0,0.00915583]
[1760629939191,0.11050075,109250.0,109240.0,0.18308311]
[1760629939864,0.11050075,109250.0,109230.0,0.1830975]
[1760629940095,0.45050075,109250.0,109230.0,0.1830975]
[1760629940931,5.34,109240.0,109220.0,0.18311592]
[1760629941141,5.0,109230.0,109210.0,0.01798804]
[1760629941350,0.11,109230.0,109210.0,0.2011183]
[1760629941564,0.45,109230.0,109220.0,0.01172099]
[1760629941774,0.10823324,109230.0,109220.0,0.01831166]
[1760629941993,0.18308395,109240.0,109200.0,0.19230768]
[1760629942201,0.18308395,109240.0,109230.0,4e-05]
[1760629942202,5.05,109240.0,109230.0,4e-05]
[1760629942410,0.05,109240.0,109230.0,4e-05]
[1760629942662,0.05,109240.0,109230.0,0.20148986]
[1760629942870,0.05,109240.0,109230.0,0.18317988]
[1760629943077,0.05,109240.0,109230.0,8e-05]
[1760629943499,0.39,109240.0,109230.0,0.00012]
[1760629943708,0.05,109240.0,109230.0,0.00012]
[1760629944136,5.23308311,109240.0,109230.0,0.00012]
[1760629944344,5.23308311,109240.0,109230.0,0.00016]
[1760629944345,5.05,109240.0,109230.0,0.00016]
[1760629944969,5.05,109240.0,109230.0,0.0002]
[1760629945176,5.23308311,109240.0,109230.0,0.0002]
[1760629945414,5.23308311,109240.0,109230.0,0.00024]
[1760629945829,5.05,109240.0,109230.0,0.00024]
[1760629946029,5.23308311,109240.0,109230.0,0.00024]
[1760629946237,5.57308311,109240.0,109230.0,0.00024]
[1760629946461,5.39,109240.0,109230.0,0.00024]
[1760629947050,5.39,109240.0,109230.0,0.00028]
[1760629947462,5.5921834,109240.0,109230.0,0.00028]
[1760629947911,6.00047165,109240.0,109230.0,0.00032]
[1760629948315,6.00047165,109240.0,109230.0,0.00036]
[1760629949111,5.60047165,109240.0,109230.0,0.0004]
[1760629949312,5.5921834,109240.0,109230.0,0.0004]
[1760629949513,6.00147349,109240.0,109230.0,0.0004]
[1760629949687,6.00047349,109240.0,109230.0,0.0004]
[1760629949886,6.00047349,109240.0,109230.0,0.00044]
[1760629950495,6.01926262,109240.0,109230.0,0.00044]
[1760629950704,5.99438972,109240.0,109230.0,0.00044]
[1760629950976,6.01097307,109240.0,109230.0,0.00044]
[1760629951140,0.52315018,109200.0,109190.0,0.01798804]
[1760629951346,0.64315018,109200.0,109190.0,0.01798804]
[1760629951549,5.64315018,109200.0,109190.0,0.01798804]
[1760629951749,5.18316734,109190.0,109170.0,0.01822804]
[1760629951948,5.0,109180.0,109170.0,0.01822804]
[1760629952153,0.13,109180.0,109170.0,0.01822804]
[1760629952351,0.13,109180.0,109170.0,0.18359074]
[1760629952948,0.13,109180.0,109170.0,0.00039023]
[1760629953515,0.13,109180.0,109170.0,0.00139023]
[1760629954129,0.13,109180.0,109170.0,0.00039023]
[1760629954533,0.13,109180.0,109170.0,0.00043023]
[1760629954719,0.13,109180.0,109170.0,0.01875028]
[1760629955059,0.13,109180.0,109170.0,0.20199079]
[1760629955278,0.13,109180.0,109170.0,0.00047023]
[1760629955482,0.13,109180.0,109170.0,0.01883028]
[1760629955733,0.13,109180.0,109170.0,0.00051023]
[1760629956093,0.13,109180.0,109170.0,0.00055023]
[1760629956516,0.14495311,109180.0,109170.0,0.20211079]
[1760629956718,0.14495311,109180.0,109170.0,0.00059023]
[1760629957139,0.14495311,109180.0,109170.0,0.01891028]
[1760629957887,0.14495311,109180.0,109170.0,0.00059023]
[1760629958589,0.66813684,109180.0,109170.0,0.00059023]
[1760629958796,5.66813684,109180.0,109170.0,0.00059023]
[1760629960362,5.66813684,109180.0,109170.0,0.00063023]
[1760629960773,5.66813684,109180.0,109170.0,0.18383074]
[1760629960774,5.48495311,109180.0,109170.0,0.18383074]
[1760629960989,0.48495311,109180.0,109170.0,0.00067023]
[1760629961408,0.48495311,109180.0,109170.0,0.00407347]
[1760629961645,5.48495311,109180.0,109170.0,0.00411347]
[1760629961853,5.66813684,109180.0,109170.0,0.00411347]
[1760629962061,5.66813684,109180.0,109170.0,0.00415347]
[1760629962504,6.10431912,109180.0,109170.0,0.00415347]
[1760629962711,6.10431912,109180.0,109170.0,0.00419347]
[1760629962978,6.06813684,109180.0,109170.0,0.00419347]
[1760629963395,6.06813684,109180.0,109170.0,0.00423347]
[1760629963795,6.08728738,109180.0,109170.0,0.00423347]
[1760629964251,6.06813684,109180.0,109170.0,0.00423347]
[1760629964466,6.0872834,109180.0,109170.0,0.00423347]
[1760629964676,6.06813684,109180.0,109170.0,0.00423347]
[1760629964893,6.09577772,109180.0,109170.0,0.00423347]
[1760629965107,6.13196,109180.0,109170.0,0.00423347]
[1760629965322,6.13296,109180.0,109170.0,0.00423347]
[1760629965561,5.67663684,109180.0,109170.0,0.00423347]
[1760629965778,5.67763684,109180.0,109170.0,0.00423347]
[1760629965991,5.67663684,109180.0,109170.0,0.00423347]
[1760629966420,5.49445311,109180.0,109170.0,0.00423347]
[1760629966637,5.66813684,109180.0,109170.0,0.00423347]
[1760629967497,5.14495311,109180.0,109170.0,0.00423347]
[1760629967678,0.14495311,109180.0,109170.0,0.00423347]
[1760629967913,0.32813684,109180.0,109170.0,0.00423347]
[1760629968131,0.66913684,109180.0,109170.0,0.00423347]
[1760629968343,5.66813684,109180.0,109170.0,0.00423347]
[1760629969869,5.68728022,109180.0,109170.0,0.00423347]
[1760629970075,5.66813684,109180.0,109170.0,0.00423347]
[1760629970283,5.68727971,109180.0,109170.0,0.00423347]
[1760629971166,5.68827971,109180.0,109170.0,0.00423347]
[1760629971375,5.66913684,109180.0,109170.0,0.00423347]
[1760629972246,5.68829578,109180.0,109170.0,0.00423347]
[1760629972905,5.48595311,109180.0,109170.0,0.00423347]
[1760629973146,5.66913684,109180.0,109170.0,0.00423347]
[1760629973562,0.66913684,109180.0,109170.0,0.00423347]
[1760629973768,0.32913684,109180.0,109170.0,0.00423347]
[1760629973971,0.32813684,109180.0,109170.0,0.00423347]
[1760629974184,0.66813684,109180.0,109170.0,0.00423347]
[1760629974594,0.48495311,109180.0,109170.0,0.00423347]
[1760629974803,0.14495311,109180.0,109170.0,0.00423347]
[1760629975013,0.14495311,109180.0,109170.0,0.18743398]
[1760629975500,0.13,109180.0,109170.0,0.18743398]
[1760629976415,0.13,109180.0,109170.0,0.00423347]
[1760629976640,0.125,109180.0,109170.0,0.00423347]
[1760629977066,0.64818373,109180.0,109170.0,0.00423347]
[1760629977272,5.66741669,109180.0,109170.0,0.00423347]
[1760629978856,5.69146012,109180.0,109170.0,0.00423347]
[1760629979267,5.70816193,109180.0,109170.0,0.00423347]
[1760629979484,5.69146012,109180.0,109170.0,0.00423347]
[1760629979697,5.74020403,109180.0,109170.0,0.00423347]
[1760629980150,5.70816296,109180.0,109170.0,0.00423347]
[1760629980791,5.68411953,109180.0,109170.0,0.00423347]
[1760629981195,5.70816296,109180.0,109170.0,0.00423347]
[1760629981408,5.74020457,109180.0,109170.0,0.00423347]
[1760629981616,5.70816296,109180.0,109170.0,0.00423347]
[1760629981829,5.74020457,109180.0,109170.0,0.00423347]
[1760629982052,5.70816296,109180.0,109170.0,0.00423347]
[1760629985133,5.1609358,109180.0,109170.0,0.00423347]
[1760629985378,5.36816296,109180.0,109170.0,0.00423347]
[1760629985639,5.70816296,109180.0,109170.0,0.00423347]
[1760629985913,5.70817187,109180.0,109170.0,0.00423347]
[1760629986866,5.52498814,109180.0,109170.0,0.00423347]
[1760629987101,5.70817187,109180.0,109170.0,0.00423347]
[1760629987322,5.74021348,109180.0,109170.0,0.00423347]
[1760629988541,5.70817187,109180.0,109170.0,0.00423347]
[1760629988754,5.74021348,109180.0,109170.0,0.00423347]
[1760629988960,5.70817187,109180.0,109170.0,0.00423347]
[1760629989563,5.52498814,109180.0,109170.0,0.00423347]
[1760629989765,5.70817187,109180.0,109170.0,0.00423347]
[1760629990035,5.68412844,109180.0,109170.0,0.00423347]
[1760629990155,5.16094471,109180.0,109170.0,0.00423347]
[1760629990369,0.14423296,109180.0,109170.0,0.00423347]
[1760629990591,5.3248944,109180.0,109170.0,0.00423347]
[1760629990815,5.18094363,109180.0,109170.0,0.00423347]
[1760629991032,0.16423296,109180.0,109170.0,0.20575403]
[1760629991233,0.145,109180.0,109170.0,0.00423347]
[1760629992064,5.32818373,109180.0,109170.0,0.00423347]
[1760629992279,5.70412283,109180.0,109170.0,0.00423347]
[1760629992509,5.72816626,109180.0,109170.0,0.00423347]
[1760629992728,5.70412283,109180.0,109170.0,0.00423347]
[1760629992932,5.72816626,109180.0,109170.0,0.00423347]
[1760629993146,5.76020787,109180.0,109170.0,0.00423347]
[1760629995277,5.72816626,109180.0,109170.0,0.00423347]
[1760629995486,6.22816626,109180.0,109170.0,0.00423347]
[1760629996164,0.34,109160.0,109150.0,0.01798804]
[1760629996396,5.0,109150.0,109130.0,0.0363148]
[1760629996527,5.0,109150.0,109130.0,0.01813821]
[1760629996731,0.13,109150.0,109130.0,0.21943159]
[1760629996935,0.14776824,109150.0,109130.0,0.2014046]
[1760629997145,0.14776824,109150.0,109130.0,0.20140558]
[1760629997361,0.13,109150.0,109130.0,0.18341676]
[1760629997593,0.14832518,109150.0,109130.0,0.01485729]
[1760629997834,0.14280699,109150.0,109130.0,0.00115017]
[1760629998539,0.14832518,109150.0,109130.0,0.01947693]
[1760629998777,0.13,109150.0,109130.0,0.01947693]
[1760629999228,5.22155985,109150.0,109130.0,0.01947693]
[1760629999468,0.02,109150.0,109130.0,0.00115017]
[1760629999711,0.03832518,109150.0,109130.0,0.00115017]
[1760629999947,0.02,109150.0,109130.0,0.00115017]
[1760630000626,5.0,109140.0,109130.0,0.00115017]
[1760630000839,0.11,109140.0,109130.0,0.00115017]
[1760630001927,0.12832518,109140.0,109130.0,0.00115017]
[1760630002341,0.12832518,109140.0,109130.0,0.00356587]
[1760630002975,0.11,109140.0,109130.0,0.00256587]
[1760630003188,0.12832518,109140.0,109130.0,0.00256587]
[1760630003396,0.12832518,109140.0,109130.0,0.00356587]
[1760630003611,0.11,109140.0,109130.0,0.00356587]
[1760630003831,0.12832518,109140.0,109130.0,0.00356587]
[1760630004062,0.01832518,109150.0,109130.0,0.02155391]
[1760630004267,0.21,109180.0,109170.0,0.18320051]
[1760630004490,0.13,109180.0,109170.0,0.18320051]
[1760630004687,0.13,109180.0,109150.0,0.18323408]
[1760630004892,0.13,109180.0,109140.0,0.34]
[1760630005111,0.13,109180.0,109130.0,0.20222708]
[1760630005112,5.0,109160.0,109130.0,0.20222708]
[1760630005315,0.01832518,109150.0,109130.0,0.01913821]
[1760630005531,5.0,109140.0,109130.0,0.01913821]
[1760630005755,0.12,109140.0,109130.0,0.20240587]
[1760630005974,0.12,109140.0,109130.0,0.18341783]
[1760630006392,0.12,109140.0,109130.0,0.00015017]
[1760630006604,0.12,109140.0,109130.0,0.19775693]
[1760630006814,0.12,109140.0,109130.0,0.18341783]
[1760630007035,0.12,109140.0,109130.0,0.00115017]
[1760630007237,0.12,109140.0,109130.0,0.19956119]
[1760630007459,0.12,109140.0,109130.0,0.18441783]
[1760630007918,0.12,109140.0,109130.0,0.00115017]
[1760630008524,0.13832518,109140.0,109130.0,0.00115017]
[1760630008763,0.12,109140.0,109130.0,0.00115017]
[1760630009150,5.64325087,109140.0,109130.0,0.00115017]
[1760630009349,5.70325542,109140.0,109130.0,0.00115017]
[1760630009623,5.67921199,109140.0,109130.0,0.00115017]
[1760630009753,5.71160391,109140.0,109130.0,0.00115017]
[1760630010282,5.70325542,109140.0,109130.0,0.00256587]
[1760630010691,5.67921199,109140.0,109130.0,0.00256587]
[1760630011255,5.49961971,109140.0,109130.0,0.00256587]
[1760630011520,5.53795419,109140.0,109130.0,0.00256587]
[1760630012068,5.537923,109140.0,109130.0,0.00256587]
[1760630012915,5.537923,109140.0,109130.0,0.00260587]
[1760630013140,5.57410528,109140.0,109130.0,0.00260587]
[1760630013333,5.57410528,109140.0,109130.0,0.00264587]
[1760630013334,5.98210346,109140.0,109130.0,0.00264587]
[1760630013695,5.97720922,109140.0,109130.0,0.00264587]
[1760630013928,5.97720922,109140.0,109130.0,0.00268587]
[1760630014557,5.97720922,109140.0,109130.0,0.00272587]
[1760630015350,5.96910212,109140.0,109130.0,0.00276587]
[1760630015700,5.96076764,109140.0,109130.0,0.00276587]
[1760630016315,5.96076764,109140.0,109130.0,0.00280587]
[1760630016751,5.96076764,109140.0,109130.0,0.00284587]
[1760630017305,5.96076764,109140.0,109130.0,0.00288587]
[1760630018067,6.46076764,109140.0,109130.0,0.00288587]
[1760630019148,6.46076764,109140.0,109130.0,0.00292587]
[1760630020206,6.47717532,109140.0,109130.0,0.00292587]
[1760630020411,6.46050885,109140.0,109130.0,0.00292587]
[1760630020626,6.46050885,109140.0,109130.0,0.00016]
[1760630020627,6.47710825,109140.0,109130.0,0.00016]
[1760630020836,5.52330125,109110.0,109100.0,0.01798804]
[1760630021050,5.68916411,109110.0,109100.0,0.01848973]
[1760630021278,5.74494191,109110.0,109100.0,0.00050169]
[1760630021489,5.77341216,109110.0,109100.0,0.00050169]
[1760630021699,6.17341216,109110.0,109100.0,0.00050169]
[1760630021922,6.20527127,109110.0,109100.0,0.00050169]
[1760630022344,6.17341216,109110.0,109100.0,0.00050169]
[1760630023439,0.19768835,109110.0,109100.0,0.00050169]
[1760630023657,5.14658215,109110.0,109100.0,0.00050169]
[1760630023868,5.14658215,109110.0,109100.0,0.00054169]
[1760630023869,5.37286554,109110.0,109100.0,0.00054169]
[1760630024118,5.40469103,109110.0,109100.0,0.00054169]
[1760630024322,5.38081413,109110.0,109100.0,0.00058169]
[1760630024741,5.38081413,109110.0,109100.0,0.00062169]
[1760630024951,5.40468671,109110.0,109100.0,0.00062169]
[1760630025367,5.72081413,109110.0,109100.0,0.00062169]
[1760630025576,5.72081413,109110.0,109100.0,0.00066169]
[1760630025781,5.18955893,109110.0,109100.0,0.00066169]
[1760630026207,5.18955893,109110.0,109100.0,0.00070169]
[1760630026418,5.19055893,109110.0,109100.0,0.00070169]
[1760630026667,5.16568739,109110.0,109100.0,0.00251429]
[1760630026877,5.34898864,109110.0,109100.0,0.00255429]
[1760630027098,5.37286018,109110.0,109100.0,0.00255429]
[1760630027311,5.71286018,109110.0,109100.0,0.00255429]
[1760630027755,6.21286018,109110.0,109100.0,0.00255429]
[1760630027964,6.24468567,109110.0,109100.0,0.00259429]
[1760630028263,6.22081413,109110.0,109100.0,0.00259429]
[1760630028716,6.22081413,109110.0,109100.0,0.00263429]
[1760630028957,6.27323669,109110.0,109100.0,0.00263429]
[1760630029166,5.52336847,109070.0,109060.0,0.01838804]
[1760630029378,5.68905586,109070.0,109060.0,0.01853785]
[1760630029595,5.71292368,109070.0,109060.0,0.00054981]
[1760630030258,5.71291567,109070.0,109060.0,0.00054981]
[1760630030457,5.5295472,109070.0,109060.0,0.00054981]
[1760630030681,5.68904785,109070.0,109060.0,0.00054981]
[1760630030907,5.50567938,109070.0,109060.0,0.00054981]
[1760630031347,5.52052908,109070.0,109060.0,0.00054981]
[1760630031559,6.02052908,109070.0,109060.0,0.00054981]
[1760630032254,0.66395494,109070.0,109060.0,0.00054981]
[1760630032482,5.90008681,109070.0,109060.0,0.00054981]
[1760630032699,6.27191058,109070.0,109060.0,0.00054981]
[1760630032915,6.22779376,109070.0,109060.0,0.00054981]
[1760630033341,6.28346395,109070.0,109060.0,0.00054981]
[1760630034061,6.28446395,109070.0,109060.0,0.00054981]
[1760630034647,6.10109548,109070.0,109060.0,0.00054981]
[1760630034847,6.05335983,109070.0,109060.0,0.00296783]
[1760630035055,6.26063265,109070.0,109060.0,0.00296783]
[1760630035250,6.28351097,109070.0,109060.0,0.00296783]
[1760630036042,6.23577532,109070.0,109060.0,0.00296783]
[1760630036367,6.25164018,109070.0,109060.0,0.00296783]
[1760630036575,6.25264018,109070.0,109060.0,0.00296783]